bitfinex/quotes_ETHUSD_20220115
["timestamp","ask_amount","ask_price","bid_price","bid_amount"]
[1642285007222,11.74500835,3339.5,3339.4,0.06293747]
[1642285007624,11.74500835,3339.5,3339.4,0.02603447]
[1642285008825,11.74500835,3339.5,3339.4,0.06235947]
[1642285009024,11.74500835,3339.5,3339.4,0.02603447]
[1642285010580,11.74500835,3339.5,3339.4,0.07149747]
[1642285011381,11.74500835,3339.5,3339.4,1.50214384]
[1642285012186,11.69500835,3339.5,3339.4,1.50214384]
[1642285016228,11.69500835,3339.5,3339.4,1.54204284]
[1642285017272,9.56175255,3339.5,3339.4,1.54204284]
[1642285018370,7.22849675,3339.5,3339.4,1.54204284]
[1642285019971,4.89524095,3339.5,3339.4,1.45668084]
[1642285020178,4.89524095,3339.5,3339.4,1.50214384]
[1642285021022,4.89524095,3339.5,3339.4,0.07149747]
[1642285023723,4.89524095,3339.5,3339.4,0.10412847]
[1642285024575,4.89524095,3339.5,3339.4,0.02603447]
[1642285024977,4.89524095,3339.5,3339.4,0.06642247]
[1642285026876,4.89524095,3339.5,3339.4,0.02603447]
[1642285027076,4.89524095,3339.5,3339.4,0.05576747]
[1642285027277,4.89524095,3339.5,3339.4,0.09611847]
[1642285030925,4.89524095,3339.5,3339.4,0.02603447]
[1642285031326,5.01494095,3339.5,3339.4,0.02603447]
[1642285037324,4.89524095,3339.5,3339.4,0.02603447]
[1642285046974,4.89524095,3339.5,3339.4,0.05744847]
[1642285047175,4.89524095,3339.5,3339.4,0.02603447]
[1642285047375,4.89524095,3339.5,3339.4,0.06353947]
[1642285047675,4.89524095,3339.5,3339.4,0.06376447]
[1642285047876,4.89524095,3339.5,3339.4,0.02603447]
[1642285048480,4.89524095,3339.5,3339.4,0.90753748]
[1642285057779,4.89524095,3339.5,3339.4,0.02603447]
[1642285059134,4.84524095,3339.5,3339.4,0.02603447]
[1642285065626,5.5440058,3339.5,3339.4,0.02603447]
[1642285067529,4.84524095,3339.5,3339.4,0.02603447]
[1642285077185,4.69524095,3339.5,3339.4,0.02603447]
[1642285078782,4.81494095,3339.5,3339.4,0.02603447]
[1642285080281,4.69524095,3339.5,3339.4,0.02603447]
[1642285114882,4.64524095,3339.5,3339.4,0.02603447]
[1642285123183,4.64524095,3339.5,3339.4,0.81866208]
[1642285130479,4.64524095,3339.5,3339.4,0.02603447]
[1642285132482,4.64524095,3339.5,3339.4,0.87668059]
[1642285134933,4.64524095,3339.5,3339.4,0.02603447]
[1642285137577,4.64524095,3339.5,3339.4,0.73880924]
[1642285139186,4.64524095,3339.5,3339.4,1.45180924]
[1642285139585,4.64524095,3339.5,3339.4,1.42577477]
[1642285139782,4.64524095,3339.5,3339.4,1.20180924]
[1642285140283,4.64524095,3339.5,3339.4,0.713]
[1642285142440,4.64524095,3339.5,3339.4,1.4026459]
[1642285142939,4.64524095,3339.5,3339.4,0.713]
[1642285146289,1.49183149,3339.6,3339.4,1.71922432]
[1642285146594,3.149e-05,3339.6,3339.5,0.045463]
[1642285146787,3.149e-05,3339.6,3339.5,0.165163]
[1642285146994,0.00116834,3339.6,3339.5,0.165163]
[1642285147388,0.00113685,3339.6,3339.5,0.165163]
[1642285148537,0.00113685,3339.6,3339.5,0.206985]
[1642285148733,0.00113685,3339.6,3339.5,0.163998]
[1642285148934,0.00113685,3339.6,3339.5,0.209461]
[1642285156129,1.43788947,3340.2,3339.5,0.209461]
[1642285156331,1.31818947,3340.2,3339.8,0.045463]
[1642285156529,0.00284212,3340.1,3339.9,0.045463]
[1642285156829,0.1197,3340.4,3340.0,0.88503568]
[1642285157028,0.1197,3340.4,3340.1,0.045463]
[1642285157240,0.1197,3340.4,3340.1,0.090926]
[1642285158031,0.1197,3340.5,3340.1,0.090926]
[1642285158231,0.1197,3340.5,3340.3,0.045463]
[1642285158430,0.12481581,3340.5,3340.3,0.090926]
[1642285158630,0.12481581,3340.5,3340.3,0.045463]
[1642285158830,0.12481581,3340.5,3340.3,0.089253]
[1642285159034,0.12481581,3340.5,3340.3,0.045463]
[1642285159888,0.00511581,3340.5,3340.3,0.045463]
[1642285160490,0.00511581,3340.5,3340.3,0.089195]
[1642285163532,0.00511581,3340.5,3340.3,0.045463]
[1642285164632,0.00511581,3340.5,3340.3,0.090926]
[1642285165433,0.00511581,3340.5,3340.3,0.045463]
[1642285165933,0.07481581,3340.7,3340.3,3.088453]
[1642285166139,0.07481581,3340.7,3340.4,0.045463]
[1642285166336,0.07481581,3340.7,3340.4,0.090926]
[1642285166986,2.56143643,3340.6,3340.4,0.090926]
[1642285167185,0.1197,3340.5,3340.4,0.045463]
[1642285167687,0.1197,3340.5,3340.3,3.070268]
[1642285167892,2.56143643,3340.6,3340.3,3.04299]
[1642285168087,2.56143643,3340.6,3340.3,3.088453]
[1642285168287,2.56143643,3340.4,3340.3,3.088453]
[1642285168488,2.56143643,3340.4,3340.3,3.0]
[1642285168690,2.56143643,3340.4,3340.3,3.03111485]
[1642285169088,2.56143643,3340.6,3340.3,3.03111485]
[1642285169288,2.56143643,3340.6,3340.3,3.07657785]
[1642285169890,2.56143643,3340.4,3340.3,3.07657785]
[1642285170090,2.56143643,3340.4,3340.3,3.03111485]
[1642285170537,2.56257328,3340.7,3340.3,3.12204085]
[1642285170733,2.56257328,3340.7,3340.4,0.045463]
[1642285172034,1.53285399,3340.9,3340.4,0.165163]
[1642285172334,1.28809807,3341.0,3340.5,0.09206285]
[1642285172537,1.28809807,3341.0,3340.6,0.090926]
[1642285172736,0.00113685,3340.9,3340.6,0.136389]
[1642285172936,0.00113685,3340.9,3340.6,0.090926]
[1642285173526,2.30858408,3341.1,3340.6,0.090926]
[1642285173537,2.30858408,3341.1,3340.7,0.045463]
[1642285173741,2.30858408,3341.1,3340.7,0.00113685]
[1642285173938,2.30858408,3341.1,3340.7,0.03794085]
[1642285174183,0.07083685,3341.1,3340.7,0.03794085]
[1642285174384,0.07083685,3341.1,3340.8,0.83417637]
[1642285174584,2.17828408,3341.2,3340.8,0.83417637]
[1642285174984,0.00113684,3341.1,3340.8,0.83417637]
[1642285176984,0.00113684,3341.1,3340.8,0.86640737]
[1642285177184,0.00113684,3341.1,3340.8,0.83417637]
[1642285178631,0.00113684,3341.1,3341.0,0.04876187]
[1642285183183,0.00113684,3341.1,3341.0,0.03006587]
[1642285183587,0.00113684,3341.1,3340.8,0.88873237]
[1642285183782,0.00113684,3341.1,3340.8,0.86145437]
[1642285185645,2.43123328,3340.9,3340.8,0.86145437]
[1642285185945,2.43123328,3340.9,3340.8,0.83417637]
[1642285186745,2.43123328,3340.9,3340.8,3.83417637]
[1642285187046,2.43123328,3340.9,3340.8,3.86489037]
[1642285187245,2.43123328,3340.9,3340.8,3.83417637]
[1642285187446,2.43123328,3340.9,3340.8,3.86146537]
[1642285187650,2.43123328,3340.9,3340.8,3.86655137]
[1642285187847,2.43123328,3340.9,3340.8,3.91201437]
[1642285188048,2.43123328,3340.9,3340.8,3.86655137]
[1642285188252,0.8995,3341.0,3340.8,3.86655137]
[1642285188448,0.8995,3341.0,3340.8,3.86659037]
[1642285190088,0.8995,3341.0,3340.8,3.90965537]
[1642285191691,3.19601504,3341.0,3340.8,3.90965537]
[1642285191891,3.19601504,3341.0,3340.8,3.86659037]
[1642285192492,3.4609027,3340.9,3340.8,3.86659037]
[1642285192946,3.4609027,3340.9,3340.8,3.83417637]
[1642285193137,2.7484027,3340.9,3340.8,3.83417637]
[1642285193739,2.7484027,3340.9,3340.8,3.86337337]
[1642285194138,2.7484027,3340.9,3340.8,3.83417637]
[1642285194740,2.7484027,3340.9,3340.8,3.86491337]
[1642285195042,2.7484027,3340.9,3340.8,3.83417637]
[1642285196686,2.7484027,3340.9,3340.8,3.86225137]
[1642285199287,2.7484027,3340.9,3340.8,3.90771437]
[1642285199487,2.7484027,3340.9,3340.8,3.86225137]
[1642285199688,2.7484027,3340.9,3340.8,3.90771437]
[1642285199888,2.7484027,3340.9,3340.8,3.95317737]
[1642285200538,4.28327572,3340.9,3340.8,3.95317737]
[1642285201338,2.7484027,3340.9,3340.8,3.95317737]
[1642285209943,2.6984027,3340.9,3340.8,5.95317737]
[1642285210144,2.6984027,3340.9,3340.8,3.95317737]
[1642285211544,2.6984027,3340.9,3340.8,4.07287737]
[1642285211793,2.6984027,3340.9,3340.8,4.02741437]
[1642285211999,2.6984027,3340.9,3340.8,4.07287737]
[1642285213294,2.6984027,3340.9,3340.8,5.99912698]
[1642285213495,2.6984027,3340.9,3340.8,6.00858273]
[1642285213894,2.5376797,3340.9,3340.8,6.00858273]
[1642285214095,2.5376797,3340.9,3340.8,4.07287737]
[1642285214395,2.5376797,3340.9,3340.8,6.018151]
[1642285214600,2.5376797,3340.9,3340.8,3.95317737]
[1642285216341,2.5376797,3340.9,3340.8,5.88003292]
[1642285216542,2.5376797,3340.9,3340.8,5.90113276]
[1642285216846,2.5376797,3340.9,3340.8,5.88419574]
[1642285217145,2.5376797,3340.9,3340.8,3.95317737]
[1642285217341,2.5376797,3340.9,3340.8,5.93079885]
[1642285217543,2.5376797,3340.9,3340.8,4.07287737]
[1642285217842,2.5376797,3340.9,3340.8,6.07287737]
[1642285218045,2.5376797,3340.9,3340.8,4.07287737]
[1642285219887,2.5376797,3340.9,3340.8,6.04368598]
[1642285220190,2.5376797,3340.9,3340.8,4.07287737]
[1642285220689,2.5376797,3340.9,3340.8,3.95317737]
[1642285220892,2.5376797,3340.9,3340.8,5.90515477]
[1642285221191,2.5376797,3340.9,3340.8,5.88984191]
[1642285221390,2.5376797,3340.9,3340.8,5.89046232]
[1642285221698,2.5376797,3340.9,3340.8,3.95317737]
[1642285223135,2.5376797,3340.9,3340.8,5.90286681]
[1642285223935,2.5376797,3340.9,3340.8,3.95317737]
[1642285224141,2.5376797,3340.9,3340.8,4.07287737]
[1642285224336,2.5376797,3340.9,3340.8,3.86721837]
[1642285224537,2.5376797,3340.9,3340.8,3.83417637]
[1642285224737,2.5376797,3340.9,3340.8,3.87963937]
[1642285224943,2.5376797,3340.9,3340.8,3.87766437]
[1642285225136,2.5376797,3340.9,3340.8,3.92312737]
[1642285225337,2.5376797,3340.9,3340.8,3.83417637]
[1642285225744,4.6698001,3340.9,3340.8,3.83417637]
[1642285226040,2.6698001,3340.9,3340.8,3.83417637]
[1642285227693,2.6698001,3340.9,3340.8,7.637e-05]
[1642285227894,5.14264073,3340.9,3340.8,0.81943598]
[1642285229093,6.67751375,3340.9,3340.8,0.81943598]
[1642285230099,5.14264073,3340.9,3340.8,0.81943598]
[1642285232651,5.14264073,3340.9,3340.7,0.03358099]
[1642285232846,3.40615652,3340.8,3340.7,1e-08]
[1642285233044,3.83915652,3340.8,3340.7,1e-08]
[1642285233447,1.4522,3340.8,3340.7,0.02927867]
[1642285233846,1.4522,3340.8,3340.7,0.02847867]
[1642285234057,1.4522,3340.8,3340.7,0.78323864]
[1642285234890,6.14987276,3340.8,3340.7,0.02847867]
[1642285235091,6.14987276,3340.8,3340.3,0.0702]
[1642285235296,0.8995,3340.7,3340.3,0.0702]
[1642285235491,0.8995,3340.5,3340.4,0.00284212]
[1642285235691,3.46889467,3340.5,3340.4,0.00284212]
[1642285236796,3.46889467,3340.5,3339.3,0.04729812]
[1642285236994,3.46889467,3340.5,3340.4,3.0]
[1642285237198,8.32463511,3340.5,3340.4,3.0]
[1642285237392,6.18824044,3340.5,3340.4,3.0]
[1642285237592,7.5071671,3340.5,3340.4,3.0]
[1642285238240,3.89408714,3340.5,3340.4,3.67714957]
[1642285238640,3.89408714,3340.5,3340.4,3.0]
[1642285239440,5.42239285,3340.5,3340.4,3.0]
[1642285240449,3.89408714,3340.5,3340.4,3.0]
[1642285240644,4.6748944,3340.5,3340.4,3.0]
[1642285243791,6.40838132,3340.5,3340.4,3.0]
[1642285243992,4.6748944,3340.5,3340.4,3.0]
[1642285244394,6.34032432,3340.5,3340.4,3.0]
[1642285244592,5.55951706,3340.5,3340.4,3.0]
[1642285244793,7.08638076,3340.5,3340.4,3.0]
[1642285245450,5.42095084,3340.5,3340.4,3.0]
[1642285246338,6.34715677,3340.5,3340.4,3.0]
[1642285247039,5.42095084,3340.5,3340.4,3.0]
[1642285247442,3.89408714,3340.5,3340.4,3.0]
[1642285258891,3.89408714,3340.5,3340.4,3.83878423]
[1642285260540,3.46108714,3340.5,3340.4,3.83878423]
[1642285263444,0.74590855,3340.5,3340.4,3.83878423]
[1642285264791,0.74590855,3340.5,3340.4,3.95848423]
[1642285264992,0.034943,3340.6,3340.4,3.95848423]
[1642285265191,0.034943,3340.6,3340.5,0.1197]
[1642285265589,0.03607985,3340.6,3340.5,0.1197]
[1642285268844,1.65992155,3341.4,3340.5,0.1197]
[1642285269349,0.00397896,3341.3,3340.5,0.1197]
[1642285269745,0.00341054,3341.2,3340.5,0.1197]
[1642285270148,0.00284211,3341.1,3340.5,0.1197]
[1642285270546,0.00227369,3341.0,3340.5,0.1197]
[1642285270948,0.00170527,3340.9,3340.5,0.1197]
[1642285271348,0.00113684,3340.8,3340.5,0.1197]
[1642285273224,0.00113684,3340.8,3340.5,2.05706053]
[1642285273625,0.00113684,3340.8,3340.6,0.03007744]
[1642285273830,0.00113684,3340.8,3340.7,0.1197]
[1642285279596,0.00113684,3340.8,3340.6,0.14977744]
[1642285282098,0.00113684,3340.8,3340.6,0.03007744]
[1642285283349,0.00113684,3340.8,3340.7,0.1197]
[1642285283749,0.00113684,3340.8,3340.6,0.1197]
[1642285284954,0.00113684,3340.8,3340.5,2.0036313]
[1642285285151,0.00113684,3340.8,3340.5,1.99741655]
[1642285285350,0.00113684,3340.8,3340.5,1.99907273]
[1642285287499,0.00113684,3340.8,3340.5,2.74708273]
[1642285287896,0.00113684,3340.8,3340.5,3.49500573]
[1642285288494,0.00113684,3340.8,3340.6,0.03007023]
[1642285288696,0.00113684,3340.8,3340.7,0.1197]
[1642285289499,0.00113684,3340.8,3340.6,0.14977023]
[1642285289696,0.00113684,3340.8,3340.6,1.23787023]
[1642285289898,0.1197,3340.7,3340.6,1.23787023]
[1642285290101,0.12083684,3340.8,3340.6,1.23787023]
[1642285290296,0.00113684,3340.8,3340.6,1.23787023]
[1642285290750,0.00113684,3340.8,3340.6,0.03007023]
[1642285291449,0.12083684,3340.8,3340.6,0.03007023]
[1642285291650,2.68155829,3340.8,3340.6,0.03007023]
[1642285292655,2.56072145,3340.7,3340.6,0.03007023]
[1642285293650,2.56072145,3340.7,3340.4,3.83878423]
[1642285294799,2.56185829,3340.8,3340.4,3.83878423]
[1642285295897,0.1197,3340.7,3340.4,3.83878423]
[1642285296999,2.56072145,3340.6,3340.4,3.83878423]
[1642285300056,2.56185829,3340.8,3340.4,3.83878423]
[1642285303521,0.1197,3340.7,3340.6,0.03291365]
[1642285303716,2.56185829,3340.8,3340.6,0.03291365]
[1642285304114,2.56072145,3340.8,3340.6,0.03291365]
[1642285304316,2.56072145,3340.7,3340.6,0.03291365]
[1642285304517,2.68042145,3340.7,3340.6,0.03291365]
[1642285305547,2.56072145,3340.7,3340.6,0.03291365]
[1642285308650,2.56072145,3340.7,3340.4,3.83878423]
[1642285310402,2.58906145,3340.7,3340.4,3.0]
[1642285311204,2.56072145,3340.6,3340.4,3.0]
[1642285321844,0.034179,3340.5,3340.4,3.0]
[1642285322046,2.56072145,3340.6,3340.4,3.0]
[1642285322047,2.58799945,3340.6,3340.4,3.0]
[1642285322345,2.58799945,3340.6,3340.4,3.00113685]
[1642285322546,2.56072145,3340.5,3340.4,3.00113685]
[1642285325500,2.56072145,3340.7,3340.4,3.00113685]
[1642285326400,2.59062745,3340.7,3340.4,3.00113685]
[1642285326603,0.035864,3340.6,3340.4,3.00113685]
[1642285326799,2.58799945,3340.7,3340.4,3.85017305]
[1642285327199,0.037348,3340.6,3340.4,3.85017305]
[1642285327501,0.029484,3340.6,3340.4,3.00113685]
[1642285327700,2.59020545,3340.6,3340.4,3.00113685]
[1642285328349,2.56072145,3340.5,3340.4,3.00113685]
[1642285328749,2.60225945,3340.5,3340.4,3.00113685]
[1642285328949,2.60225945,3340.5,3340.4,3.75929338]
[1642285329349,2.56072145,3340.5,3340.4,3.75929338]
[1642285329550,2.60618445,3340.5,3340.4,3.75929338]
[1642285329749,2.56072145,3340.5,3340.4,3.75929338]
[1642285330949,2.56072145,3340.6,3340.4,3.75929338]
[1642285331149,2.59231545,3340.6,3340.4,3.75929338]
[1642285331350,2.56072145,3340.6,3340.4,3.75929338]
[1642285331706,0.037483,3340.5,3340.4,3.75929338]
[1642285331898,0.037483,3340.5,3340.4,0.00113685]
[1642285332298,2.58799945,3340.6,3340.4,0.00113685]
[1642285332599,2.59581345,3340.5,3339.7,0.05380646]
[1642285332901,0.035428,3340.4,3339.8,0.00341054]
[1642285333100,2.56072145,3340.5,3339.8,0.00341054]
[1642285333601,2.56072145,3340.5,3340.3,0.03300786]
[1642285334101,2.56072145,3340.6,3340.4,0.72582362]
[1642285334500,2.5618583,3340.6,3340.4,0.72582362]
[1642285335587,2.5902633,3340.6,3340.4,0.72582362]
[1642285336991,2.56072145,3340.5,3340.4,0.72582362]
[1642285338286,2.5618583,3340.6,3340.4,0.72582362]
[1642285338787,2.59659264,3340.6,3340.4,0.72582362]
[1642285339804,2.56072145,3340.5,3339.9,0.1197]
[1642285340004,2.56072145,3340.5,3339.5,1.4965222]
[1642285340407,0.00341054,3340.4,3339.5,1.4965222]
[1642285340606,0.00341054,3340.4,3339.7,0.1197]
[1642285340807,0.00284211,3340.3,3339.7,0.1197]
[1642285341107,0.00227369,3340.2,3340.0,0.7471426]
[1642285341509,0.00170527,3340.1,3340.0,0.7471426]
[1642285341908,0.00341054,3340.1,3340.0,2.74234413]
[1642285342112,0.00341054,3340.1,3340.0,2.74924276]
[1642285342308,0.00341054,3340.1,3340.0,2.76345923]
[1642285342607,0.15443434,3340.6,3340.0,2.76345923]
[1642285342807,0.027278,3340.4,3340.0,2.76345923]
[1642285343051,0.18567134,3340.6,3340.1,0.00170527]
[1642285343651,0.03470542,3340.2,3340.1,0.00170527]
[1642285343850,0.03470542,3340.2,3340.1,1.93378484]
[1642285344050,2.56101918,3340.5,3340.1,1.93378484]
[1642285344452,2.56101918,3340.5,3340.2,0.00113685]
[1642285344659,0.12083685,3340.6,3340.2,0.00113685]
[1642285344852,0.00113685,3340.6,3340.2,0.00113685]
[1642285345654,2.56092837,3340.5,3340.2,0.00113685]
[1642285346703,0.00113685,3340.6,3340.2,0.00113685]
[1642285347800,2.56206522,3340.6,3340.2,0.00113685]
[1642285348702,0.00113685,3340.6,3340.3,0.03101444]
[1642285349703,2.56092837,3340.5,3340.3,0.03101444]
[1642285349908,2.56092837,3340.5,3340.3,0.15071444]
[1642285350556,0.00113685,3340.6,3340.3,0.15071444]
[1642285353656,0.00113685,3340.6,3340.3,0.1197]
[1642285354060,0.00113685,3340.6,3340.2,0.15203631]
[1642285355108,0.70587839,3340.5,3340.2,0.15203631]
[1642285355304,0.03263185,3340.6,3340.2,0.03233631]
[1642285355705,0.02870085,3340.6,3340.2,0.03233631]
[1642285356108,0.035298,3340.5,3340.2,0.03233631]
[1642285356309,0.045463,3340.3,3340.2,0.03233631]
[1642285357712,2.60639137,3340.3,3340.2,0.03233631]
[1642285357963,2.47521443,3340.3,3340.2,0.03233631]
[1642285360361,0.1197,3340.5,3340.2,0.03233631]
[1642285360756,0.86201096,3340.5,3340.2,0.03233631]
[1642285360956,0.1197,3340.5,3340.2,0.03233631]
[1642285363205,0.00113685,3340.6,3340.2,0.03233631]
[1642285363407,0.1197,3340.5,3340.2,0.03233631]
[1642285368657,0.03592734,3340.4,3340.2,0.00113685]
[1642285369513,3.03592734,3340.4,3340.2,0.00113685]
[1642285370714,0.91719345,3340.3,3340.2,0.00113685]
[1642285374459,0.91719345,3340.3,3340.1,14.222]
[1642285378305,2.5610177,3340.2,3340.1,14.222]
[1642285378710,2.5610177,3340.2,3340.1,14.22370527]
[1642285383769,2.59693014,3340.2,3340.1,14.22370527]
[1642285387311,2.59693014,3340.2,3340.1,10.4065289]
[1642285390158,0.03591244,3340.2,3340.1,10.4065289]
[1642285391807,2.59706003,3340.2,3340.1,10.4065289]
[1642285392006,0.03591244,3340.2,3340.1,10.4065289]
[1642285392405,2.59706003,3340.2,3340.1,10.4065289]
[1642285398554,2.59605515,3340.2,3340.1,10.4065289]
[1642285399212,2.71575515,3340.2,3340.1,10.4065289]
[1642285399406,2.71575515,3340.2,3340.1,10.3565289]
[1642285400611,2.59605515,3340.2,3340.1,10.3565289]
[1642285408609,2.59605515,3340.2,3340.1,10.35482363]
[1642285417211,2.57109807,3340.2,3340.1,10.35482363]
[1642285418654,2.59661092,3340.2,3340.1,10.35482363]
[1642285423713,2.56114759,3340.2,3340.1,10.35482363]
[1642285429508,2.68084759,3340.2,3340.1,10.35482363]
[1642285434960,2.56114759,3340.2,3340.1,10.35482363]
[1642285439112,4.37938504,3340.2,3340.1,5.97506395]
[1642285439513,4.49908504,3340.2,3340.1,5.97506395]
[1642285440967,4.75558281,3340.2,3340.1,5.97506395]
[1642285441164,5.66713662,3340.2,3339.9,0.03518506]
[1642285441363,0.16342507,3340.1,3338.7,0.1197]
[1642285441563,0.16342507,3340.1,3340.0,0.0022737]
[1642285441763,0.8995,3340.0,3338.7,0.1197]
[1642285441963,0.90940257,3339.8,3338.8,0.00682108]
[1642285442162,0.8995,3339.6,3338.8,0.00682108]
[1642285442364,0.8995,3339.4,3338.8,0.00682108]
[1642285442566,1.85724595,3339.5,3338.8,0.00682108]
[1642285442567,0.8995,3339.2,3338.8,0.00682108]
[1642285443571,0.8995,3339.2,3338.8,0.04262108]
[1642285443865,0.8995,3339.2,3338.9,0.00625265]
[1642285444315,0.8995,3339.0,3338.9,0.00625265]
[1642285445613,3.46064759,3339.0,3338.9,0.00625265]
[1642285446219,3.46064759,3339.0,3338.7,0.0073895]
[1642285446815,3.46064759,3339.0,3338.8,0.040277]
[1642285447215,3.46064759,3339.0,3338.9,0.00625265]
[1642285447415,0.8995,3339.2,3338.9,0.00625265]
[1642285448463,0.8995,3339.0,3338.9,0.00625265]
[1642285451564,3.8995,3339.0,3338.9,0.00625265]
[1642285456164,5.77307209,3339.0,3338.9,0.00625265]
[1642285456365,4.0192,3339.0,3338.9,0.00625265]
[1642285456569,4.0192,3339.0,3338.5,0.04125935]
[1642285456765,4.0192,3339.0,3338.5,0.00852635]
[1642285456967,4.0192,3339.0,3338.6,0.00795792]
[1642285457167,4.0192,3339.0,3338.6,0.033471]
[1642285457468,4.0192,3339.0,3338.7,0.0073895]
[1642285458867,3.8995,3339.0,3338.7,0.0073895]
[1642285459915,3.8995,3339.0,3338.9,0.045463]
[1642285460116,3.8995,3339.0,3338.7,0.0073895]
[1642285460316,3.8995,3339.0,3338.9,0.00625265]
[1642285460517,3.8995,3339.0,3338.7,0.0073895]
[1642285461318,0.1198,3338.9,3338.7,0.0073895]
[1642285461518,0.1198,3338.9,3338.4,0.00909477]
[1642285462718,0.1198,3338.9,3338.3,0.00966319]
[1642285464864,0.8995,3338.7,3338.3,0.00966319]
[1642285465065,0.8995,3338.7,3338.3,0.04819319]
[1642285465464,0.8995,3338.7,3338.4,0.00909477]
[1642285465863,0.8995,3338.5,3338.4,0.00909477]
[1642285466713,0.8995,3338.5,3338.3,0.00966319]
[1642285466919,0.8995,3338.5,3338.3,0.04684619]
[1642285467116,0.8995,3338.5,3338.3,0.04638719]
[1642285467315,0.8995,3338.5,3338.4,0.05455777]
[1642285467516,0.8995,3338.5,3338.4,0.00909477]
[1642285468717,0.92488543,3338.5,3338.4,0.00909477]
[1642285469119,0.92488543,3338.5,3338.4,0.05455777]
[1642285469717,0.92488543,3338.5,3338.4,0.17435777]
[1642285470773,0.92488543,3338.5,3338.4,0.05455777]
[1642285475519,0.92488543,3338.5,3338.4,0.00909477]
[1642285475919,0.92488543,3338.5,3338.3,0.04239619]
[1642285476120,0.92488543,3338.5,3338.4,0.00909477]
[1642285476920,0.92488543,3338.5,3338.3,0.04239619]
[1642285477121,0.92488543,3338.5,3338.4,0.00909477]
[1642285484614,3.48688699,3338.5,3338.4,0.00909477]
[1642285485219,3.48688699,3338.5,3338.3,0.04239619]
[1642285485668,3.48688699,3338.5,3338.4,0.00909477]
[1642285485870,0.92488543,3338.5,3338.4,0.00909477]
[1642285486669,3.48688699,3338.5,3338.4,0.00909477]
[1642285487470,0.92488543,3338.5,3338.4,0.00909477]
[1642285488070,0.91884647,3338.5,3338.4,0.00909477]
[1642285488469,3.48084803,3338.5,3338.4,0.00909477]
[1642285488668,3.48693835,3338.5,3338.4,0.00909477]
[1642285489618,3.48693835,3338.5,3338.4,0.04924977]
[1642285489818,3.48693835,3338.5,3338.4,0.86323028]
[1642285490019,3.48693835,3338.5,3338.4,0.82307528]
[1642285490619,3.48693835,3338.5,3338.4,0.00909477]
[1642285500318,3.48693835,3338.5,3338.4,0.036474]
[1642285500774,3.48693835,3338.5,3338.4,0.04556877]
[1642285501969,4.36219214,3338.5,3338.4,0.04556877]
[1642285503772,4.21604718,3338.5,3338.4,0.04556877]
[1642285503972,3.34079339,3338.5,3338.4,0.04556877]
[1642285506720,3.34079339,3338.5,3338.4,0.74480504]
[1642285508600,3.37109247,3338.5,3338.4,0.74480504]
[1642285508806,3.37109247,3338.5,3338.4,0.04556877]
[1642285509502,3.37109247,3338.5,3338.4,0.05455777]
[1642285509703,3.37109247,3338.5,3338.4,0.00909477]
[1642285509901,4.12114309,3338.5,3338.4,0.00909477]
[1642285510103,3.37109247,3338.5,3338.4,0.00909477]
[1642285512216,3.37109247,3338.5,3338.4,0.04279677]
[1642285512418,3.37109247,3338.5,3338.4,0.08778677]
[1642285513521,3.37109247,3338.5,3338.4,0.20758677]
[1642285514118,3.37109247,3338.5,3338.4,2.34745048]
[1642285514318,3.37109247,3338.5,3338.4,0.20758677]
[1642285515320,3.37109247,3338.5,3338.4,0.08778677]
[1642285515572,3.37109247,3338.5,3338.4,0.20758677]
[1642285517173,3.37109247,3338.5,3338.4,0.20805977]
[1642285517375,3.37109247,3338.5,3338.4,0.08825977]
[1642285518574,3.34079339,3338.5,3338.4,0.24310192]
[1642285518974,3.34079339,3338.5,3338.4,2.19475586]
[1642285519224,3.34079339,3338.5,3338.4,0.24310192]
[1642285519618,0.78085155,3338.5,3338.4,0.24310192]
[1642285520820,3.0,3339.0,3338.4,0.24310192]
[1642285521023,3.0,3339.0,3338.9,0.045463]
[1642285521220,3.0,3339.0,3338.9,0.8377498]
[1642285521420,3.0,3339.0,3338.9,0.84400245]
[1642285522020,3.0,3339.0,3338.9,0.04210965]
[1642285522221,3.0,3339.0,3338.9,0.08602865]
[1642285522827,3.0,3339.0,3338.9,0.83440335]
[1642285523072,3.0,3339.0,3338.9,0.95410335]
[1642285523872,3.0,3339.0,3338.9,1.63497312]
[1642285524483,3.0,3339.0,3338.9,1.51527312]
[1642285526071,2.57694184,3339.0,3338.9,1.51527312]
[1642285527321,2.57694184,3339.0,3338.9,1.63497312]
[1642285527923,2.57694184,3339.0,3338.9,0.88659842]
[1642285528321,2.57694184,3339.0,3338.9,0.76689842]
[1642285529323,2.57694184,3339.0,3338.9,0.72297942]
[1642285529524,2.57694184,3339.0,3338.9,0.68712242]
[1642285530122,2.57694184,3339.0,3338.9,0.73258542]
[1642285530322,2.57694184,3339.0,3338.9,0.68712242]
[1642285530573,2.57694184,3339.0,3338.9,0.72397342]
[1642285531374,2.57694184,3339.0,3338.9,0.68712242]
[1642285533876,2.57694184,3339.0,3338.9,0.72735742]
[1642285534076,2.57694184,3339.0,3338.9,0.68712242]
[1642285534326,2.57694184,3339.0,3338.9,0.76582742]
[1642285536422,2.57694184,3339.0,3338.9,0.68712242]
[1642285537222,2.57694184,3339.0,3338.9,0.76551942]
[1642285537823,2.57694184,3339.0,3338.9,0.68712242]
[1642285538070,2.57694184,3339.0,3338.9,0.73258542]
[1642285539977,5.13858219,3339.0,3338.9,0.68712242]
[1642285543220,5.13858219,3339.0,3338.9,0.72539242]
[1642285547776,2.57694184,3339.0,3338.9,0.72539242]
[1642285548569,2.57694184,3339.0,3338.9,0.67539242]
[1642285549422,2.57694184,3339.0,3338.9,0.79509242]
[1642285568172,2.57694184,3339.0,3338.9,0.67539242]
[1642285571080,2.52694184,3339.0,3338.9,0.67539242]
[1642285571922,2.52694184,3339.0,3338.9,0.63712242]
[1642285572722,2.52694184,3339.0,3338.9,0.67555142]
[1642285573324,2.52694184,3339.0,3338.9,0.72101442]
[1642285575974,2.52694184,3339.0,3338.9,0.68258542]
[1642285583575,2.52694184,3339.0,3338.9,0.80228542]
[1642285586477,2.52694184,3339.0,3338.9,0.68258542]
[1642285586723,2.52694184,3339.0,3338.9,0.63712242]
[1642285587022,2.52694184,3339.0,3338.9,0.67241242]
[1642285587423,2.52694184,3339.0,3338.9,0.71530942]
[1642285595124,2.52694184,3339.0,3338.9,0.67241242]
[1642285595526,2.52694184,3339.0,3338.9,0.71787542]
[1642285595725,5.0883852,3339.0,3338.9,0.71787542]
[1642285596632,2.52694184,3339.0,3338.9,0.71787542]
[1642285598971,2.52694184,3339.0,3338.9,0.83757542]
[1642285605027,2.37061119,3339.0,3338.9,0.83757542]
[1642285606777,2.49031119,3339.0,3338.9,0.63712242]
[1642285607178,2.49031119,3339.0,3338.9,0.58712242]
[1642285607584,2.49031119,3339.0,3338.0,2.50218696]
[1642285607585,7.08053893,3339.0,3337.6,2.34498598]